[Event "Titled Tuesday Blitz June 20 Early 2023"]
[White "Abduzhaparov"]
[Black "Ismayil, Malak"]
[BlackFideId "13412604"]
[WhiteElo "2388"]
[BlackElo "1868"]
[Result "0-1"]
[Round "5"]
[TimeControl "180+2"]
[Date "2023.06.20"]
[WhiteClock "0:00:00"]
[BlackClock "0:00:05"]
[Board "147"]

1. Nf3 {[%clk 0:03:00]}  Nf6 {[%clk 0:02:57]} 2. c4 {[%clk 0:03:01]}  e6 {[%clk 0:02:54]} 3. g3 {[%clk 0:03:01]}  d5 {[%clk 0:02:53]} 4. Bg2 {[%clk 0:03:01]}  Be7 {[%clk 0:02:53]} 5. d4 {[%clk 0:03:02]}  O-O {[%clk 0:02:53]} 6. Qc2 {[%clk 0:03:02]}  a6 {[%clk 0:02:49]} 7. Nbd2 {[%clk 0:03:02]}  Bd7 {[%clk 0:02:43]} 8. O-O {[%clk 0:02:59]}  dxc4 {[%clk 0:02:41]} 9. Nxc4 {[%clk 0:03:00]}  Bc6 {[%clk 0:02:41]} 10. Rd1 {[%clk 0:02:45]}  Nbd7 {[%clk 0:02:38]} 11. Nfe5 {[%clk 0:02:37]}  Bxg2 {[%clk 0:02:38]} 12. Kxg2 {[%clk 0:02:38]}  Qc8 {[%clk 0:02:33]} 13. Bg5 {[%clk 0:02:34]}  h6 {[%clk 0:02:31]} 14. Nxd7 {[%clk 0:02:31]}  Qxd7 {[%clk 0:02:30]} 15. Bxf6 {[%clk 0:02:29]}  Bxf6 {[%clk 0:02:29]} 16. e3 {[%clk 0:02:09]}  c5 {[%clk 0:02:14]} 17. Ne5 {[%clk 0:01:54]}  Bxe5 {[%clk 0:02:10]} 18. dxe5 {[%clk 0:01:55]}  Qc6+ {[%clk 0:02:10]} 19. f3 {[%clk 0:01:45]}  Rfd8 {[%clk 0:02:09]} 20. Rac1 {[%clk 0:01:42]}  b6 {[%clk 0:02:01]} 21. b4 {[%clk 0:01:33]}  Rxd1 {[%clk 0:01:49]} 22. Rxd1 {[%clk 0:01:23]}  c4 {[%clk 0:01:48]} 23. Rd6 {[%clk 0:01:22]}  Qb5 {[%clk 0:01:44]} 24. Qc3 {[%clk 0:01:17]}  Rc8 {[%clk 0:01:41]} 25. h4 {[%clk 0:00:52]}  a5 {[%clk 0:01:30]} 26. bxa5 {[%clk 0:00:53]}  bxa5 {[%clk 0:01:15]} 27. h5 {[%clk 0:00:36]}  a4 {[%clk 0:01:13]} 28. g4 {[%clk 0:00:30]}  a3 {[%clk 0:00:56]} 29. Kg3 {[%clk 0:00:24]}  Qb2 {[%clk 0:00:48]} 30. Qa5 {[%clk 0:00:24]}  Qxa2 {[%clk 0:00:35]} 31. Rd8+ {[%clk 0:00:23]}  Rxd8 {[%clk 0:00:35]} 32. Qxd8+ {[%clk 0:00:24]}  Kh7 {[%clk 0:00:35]} 33. Qd7 {[%clk 0:00:21]}  Qb2 {[%clk 0:00:34]} 34. f4 {[%clk 0:00:14]}  Qc1 {[%clk 0:00:23]} 35. Qxf7 {[%clk 0:00:13]}  Qxe3+ {[%clk 0:00:22]} 36. Kh4 {[%clk 0:00:11]}  Qf2+ {[%clk 0:00:17]} 37. Kh3 {[%clk 0:00:11]}  Qf1+ {[%clk 0:00:17]} 38. Kg3 {[%clk 0:00:10]}  Qd3+ {[%clk 0:00:16]} 39. Kh4 {[%clk 0:00:10]}  a2 {[%clk 0:00:13]} 40. f5 {[%clk 0:00:10]}  Qd8+ {[%clk 0:00:11]} 41. f6 {[%clk 0:00:08]}  Qg8 {[%clk 0:00:05]} 42. Qg6+ {[%clk 0:00:07]}  Kh8 {[%clk 0:00:05]} 43. f7 {[%clk 0:00:00]}  Qd8+ {[%clk 0:00:05]} 0-1


[Site "https://www.chess.com"]

[Event "Titled Tuesday Blitz June 20 Early 2023"]
[White "Nikolova, Adriana"]
[Black "Buscar, Michael"]
[WhiteFideId "2908689"]
[BlackFideId "2603616"]
[WhiteElo "2213"]
[BlackElo "2010"]
[Result "0-1"]
[Round "5"]
[TimeControl "180+2"]
[Date "2023.06.20"]
[WhiteClock "0:00:00"]
[BlackClock "0:00:12"]
[Board "153"]

1. g3 {[%clk 0:02:41]}  Nf6 {[%clk 0:02:56]} 2. Bg2 {[%clk 0:02:41]}  e6 {[%clk 0:02:55]} 3. b3 {[%clk 0:02:41]}  d5 {[%clk 0:02:53]} 4. Bb2 {[%clk 0:02:41]}  Be7 {[%clk 0:02:53]} 5. d3 {[%clk 0:02:42]}  O-O {[%clk 0:02:54]} 6. Nf3 {[%clk 0:02:43]}  Nbd7 {[%clk 0:02:52]} 7. Nbd2 {[%clk 0:02:43]}  c6 {[%clk 0:02:53]} 8. O-O {[%clk 0:02:43]}  Re8 {[%clk 0:02:53]} 9. e4 {[%clk 0:02:44]}  dxe4 {[%clk 0:02:52]} 10. dxe4 {[%clk 0:02:39]}  Qc7 {[%clk 0:02:46]} 11. Qe2 {[%clk 0:02:38]}  Nf8 {[%clk 0:02:31]} 12. c4 {[%clk 0:02:36]}  N6d7 {[%clk 0:02:25]} 13. Rad1 {[%clk 0:02:34]}  e5 {[%clk 0:02:25]} 14. h4 {[%clk 0:02:29]}  f6 {[%clk 0:02:21]} 15. Bh3 {[%clk 0:02:28]}  Nc5 {[%clk 0:02:21]} 16. Bg2 {[%clk 0:02:26]}  Bg4 {[%clk 0:02:18]} 17. Nb1 {[%clk 0:02:25]}  Rad8 {[%clk 0:02:17]} 18. Bc3 {[%clk 0:02:23]}  Nce6 {[%clk 0:02:11]} 19. Qb2 {[%clk 0:02:13]}  a5 {[%clk 0:02:03]} 20. Rxd8 {[%clk 0:02:13]}  Rxd8 {[%clk 0:02:02]} 21. Nh2 {[%clk 0:02:13]}  Bh5 {[%clk 0:02:00]} 22. Nd2 {[%clk 0:02:08]}  Bc5 {[%clk 0:01:49]} 23. Kh1 {[%clk 0:02:08]}  Nd4 {[%clk 0:01:46]} 24. Ndf3 {[%clk 0:02:02]}  Nfe6 {[%clk 0:01:41]} 25. Nxd4 {[%clk 0:01:57]}  Nxd4 {[%clk 0:01:34]} 26. f4 {[%clk 0:01:46]}  Ne2 {[%clk 0:01:19]} 27. Be1 {[%clk 0:01:34]}  Rd1 {[%clk 0:01:00]} 28. Bf3 {[%clk 0:01:11]}  Bxf3+ {[%clk 0:00:48]} 29. Nxf3 {[%clk 0:00:53]}  Nxg3+ {[%clk 0:00:48]} 30. Kg2 {[%clk 0:00:45]}  Nxf1 {[%clk 0:00:45]} 31. Kxf1 {[%clk 0:00:46]}  exf4 {[%clk 0:00:37]} 32. Qe2 {[%clk 0:00:39]}  Qd7 {[%clk 0:00:35]} 33. Kg2 {[%clk 0:00:35]}  Qg4+ {[%clk 0:00:33]} 34. Kh2 {[%clk 0:00:36]}  Rd3 {[%clk 0:00:32]} 35. Qxd3 {[%clk 0:00:23]}  Be3 {[%clk 0:00:30]} 36. Qe2 {[%clk 0:00:14]}  g5 {[%clk 0:00:25]} 37. Qg2 {[%clk 0:00:10]}  Qh5 {[%clk 0:00:23]} 38. Nxg5 {[%clk 0:00:04]}  fxg5 {[%clk 0:00:22]} 39. Qxg5+ {[%clk 0:00:05]}  Qxg5 {[%clk 0:00:22]} 40. hxg5 {[%clk 0:00:06]}  Kg7 {[%clk 0:00:22]} 41. Kg2 {[%clk 0:00:06]}  Kg6 {[%clk 0:00:22]} 42. Bxa5 {[%clk 0:00:05]}  Kxg5 {[%clk 0:00:21]} 43. Kf3 {[%clk 0:00:06]}  h5 {[%clk 0:00:21]} 44. Bd8+ {[%clk 0:00:06]}  Kg6 {[%clk 0:00:21]} 45. Bc7 {[%clk 0:00:04]}  Kg5 {[%clk 0:00:21]} 46. Bd8+ {[%clk 0:00:04]}  Kg6 {[%clk 0:00:21]} 47. a4 {[%clk 0:00:03]}  Kh6 {[%clk 0:00:14]} 48. b4 {[%clk 0:00:03]}  Kg6 {[%clk 0:00:14]} 49. b5 {[%clk 0:00:03]}  cxb5 {[%clk 0:00:14]} 50. cxb5 {[%clk 0:00:04]}  Kf7 {[%clk 0:00:13]} 51. a5 {[%clk 0:00:04]}  Ke6 {[%clk 0:00:11]} 52. a6 {[%clk 0:00:04]}  bxa6 {[%clk 0:00:11]} 53. bxa6 {[%clk 0:00:05]}  Ba7 {[%clk 0:00:11]} 54. Kxf4 {[%clk 0:00:04]}  Kd7 {[%clk 0:00:12]} 55. Bf6 {[%clk 0:00:03]}  Kc6 {[%clk 0:00:12]} 56. Bd8 {[%clk 0:00:00]}  Kb5 {[%clk 0:00:12]} 0-1


[Site "https://www.chess.com"]

[Event "Titled Tuesday Blitz June 20 Early 2023"]
[White "Santos Flores, Alberto"]
[Black "Samaganova, Aleksandra"]
[WhiteFideId "3601234"]
[BlackFideId "13800221"]
[WhiteElo "2235"]
[BlackElo "1858"]
[Result "1-0"]
[Round "5"]
[TimeControl "180+2"]
[Date "2023.06.20"]
[WhiteClock "0:00:06"]
[BlackClock "0:00:00"]
[Board "155"]

1. e4 {[%clk 0:02:55]}  c5 {[%clk 0:02:53]} 2. Nf3 {[%clk 0:02:55]}  e6 {[%clk 0:02:49]} 3. g3 {[%clk 0:02:55]}  Nc6 {[%clk 0:02:47]} 4. Bg2 {[%clk 0:02:55]}  g6 {[%clk 0:02:47]} 5. d4 {[%clk 0:02:55]}  cxd4 {[%clk 0:02:47]} 6. Nxd4 {[%clk 0:02:56]}  a6 {[%clk 0:02:35]} 7. Nc3 {[%clk 0:02:55]}  Bg7 {[%clk 0:02:31]} 8. Nb3 {[%clk 0:02:54]}  Nge7 {[%clk 0:02:28]} 9. O-O {[%clk 0:02:53]}  O-O {[%clk 0:02:28]} 10. Bf4 {[%clk 0:02:45]}  b5 {[%clk 0:02:12]} 11. Bd6 {[%clk 0:02:42]}  Bb7 {[%clk 0:02:11]} 12. f4 {[%clk 0:02:41]}  Re8 {[%clk 0:02:02]} 13. Kh1 {[%clk 0:02:29]}  Na5 {[%clk 0:01:55]} 14. Nxa5 {[%clk 0:01:48]}  Qxa5 {[%clk 0:01:54]} 15. Bxe7 {[%clk 0:01:40]}  Rxe7 {[%clk 0:01:54]} 16. e5 {[%clk 0:01:41]}  Qc7 {[%clk 0:01:20]} 17. Bxb7 {[%clk 0:01:37]}  Qxb7+ {[%clk 0:01:20]} 18. Qf3 {[%clk 0:01:38]}  Qa7 {[%clk 0:01:09]} 19. Ne4 {[%clk 0:01:35]}  Rc8 {[%clk 0:01:05]} 20. c3 {[%clk 0:01:34]}  Rc6 {[%clk 0:00:53]} 21. Rfd1 {[%clk 0:01:30]}  Re8 {[%clk 0:00:50]} 22. Rd3 {[%clk 0:01:23]}  Rec8 {[%clk 0:00:46]} 23. Rad1 {[%clk 0:01:22]}  R8c7 {[%clk 0:00:46]} 24. Rd4 {[%clk 0:01:08]}  Rb7 {[%clk 0:00:30]} 25. Qd3 {[%clk 0:01:07]}  Rcc7 {[%clk 0:00:22]} 26. b4 {[%clk 0:01:06]}  h6 {[%clk 0:00:22]} 27. Nc5 {[%clk 0:01:05]}  Rb8 {[%clk 0:00:19]} 28. Rxd7 {[%clk 0:01:03]}  Rxd7 {[%clk 0:00:18]} 29. Qxd7 {[%clk 0:01:03]}  Qa8+ {[%clk 0:00:15]} 30. Kg1 {[%clk 0:00:58]}  Bf8 {[%clk 0:00:14]} 31. Kf2 {[%clk 0:00:45]}  a5 {[%clk 0:00:13]} 32. a3 {[%clk 0:00:40]}  axb4 {[%clk 0:00:13]} 33. axb4 {[%clk 0:00:41]}  Qa2+ {[%clk 0:00:12]} 34. Rd2 {[%clk 0:00:37]}  Qa1 {[%clk 0:00:08]} 35. Qc7 {[%clk 0:00:16]}  Qxc3 {[%clk 0:00:07]} 36. Rd3 {[%clk 0:00:14]}  Qc2+ {[%clk 0:00:05]} 37. Ke3 {[%clk 0:00:14]}  Ra8 {[%clk 0:00:04]} 38. Nxe6 {[%clk 0:00:12]}  Qxc7 {[%clk 0:00:01]} 39. Nxc7 {[%clk 0:00:12]}  Rc8 {[%clk 0:00:01]} 40. Nxb5 {[%clk 0:00:12]}  Rb8 {[%clk 0:00:01]} 41. Nd6 {[%clk 0:00:12]}  Rxb4 {[%clk 0:00:01]} 42. h4 {[%clk 0:00:11]}  Rb2 {[%clk 0:00:02]} 43. Kf3 {[%clk 0:00:10]}  Rh2 {[%clk 0:00:02]} 44. Ne4 {[%clk 0:00:09]}  Rh1 {[%clk 0:00:02]} 45. Rd7 {[%clk 0:00:09]}  Rf1+ {[%clk 0:00:02]} 46. Kg2 {[%clk 0:00:09]}  Re1 {[%clk 0:00:02]} 47. Nd6 {[%clk 0:00:09]}  Re2+ {[%clk 0:00:02]} 48. Kf3 {[%clk 0:00:07]}  Rd2 {[%clk 0:00:02]} 49. Ke3 {[%clk 0:00:05]}  Rd1 {[%clk 0:00:02]} 50. Rd8 {[%clk 0:00:05]}  Kg7 {[%clk 0:00:02]} 51. Ne8+ {[%clk 0:00:05]}  Kg8 {[%clk 0:00:00]} 52. Rxd1 {[%clk 0:00:06]} 1-0


[Site "https://www.chess.com"]

[Event "Titled Tuesday Blitz June 20 Early 2023"]
[White "Kuzmin, Ilya"]
[Black "Mattheii"]
[WhiteFideId "4153863"]
[WhiteElo "2093"]
[BlackElo "2467"]
[Result "0-1"]
[Round "5"]
[TimeControl "180+2"]
[Date "2023.06.20"]
[WhiteClock "0:00:40"]
[BlackClock "0:00:52"]
[Board "156"]

1. d4 {[%clk 0:03:00]}  Nf6 {[%clk 0:02:57]} 2. c4 {[%clk 0:03:00]}  e6 {[%clk 0:02:57]} 3. Nf3 {[%clk 0:03:00]}  b6 {[%clk 0:02:56]} 4. e3 {[%clk 0:02:59]}  Bb7 {[%clk 0:02:55]} 5. Bd3 {[%clk 0:02:59]}  d5 {[%clk 0:02:31]} 6. b3 {[%clk 0:02:57]}  Be7 {[%clk 0:02:30]} 7. O-O {[%clk 0:02:56]}  O-O {[%clk 0:02:28]} 8. Bb2 {[%clk 0:02:56]}  Nbd7 {[%clk 0:02:27]} 9. cxd5 {[%clk 0:02:53]}  Nxd5 {[%clk 0:02:27]} 10. Nc3 {[%clk 0:02:44]}  c5 {[%clk 0:02:26]} 11. Nxd5 {[%clk 0:02:44]}  Bxd5 {[%clk 0:02:25]} 12. e4 {[%clk 0:02:44]}  Bb7 {[%clk 0:02:24]} 13. Qe2 {[%clk 0:02:24]}  cxd4 {[%clk 0:02:22]} 14. Nxd4 {[%clk 0:02:16]}  Nc5 {[%clk 0:02:10]} 15. Rfd1 {[%clk 0:02:06]}  Bf6 {[%clk 0:01:33]} 16. e5 {[%clk 0:01:59]}  Be7 {[%clk 0:01:14]} 17. Nxe6 {[%clk 0:01:47]}  fxe6 {[%clk 0:01:10]} 18. Bxh7+ {[%clk 0:01:46]}  Kxh7 {[%clk 0:01:10]} 19. Qh5+ {[%clk 0:01:43]}  Kg8 {[%clk 0:01:09]} 20. Rxd8 {[%clk 0:01:43]}  Raxd8 {[%clk 0:01:10]} 21. Qg6 {[%clk 0:01:26]}  Bd5 {[%clk 0:01:04]} 22. Ba3 {[%clk 0:01:19]}  Rf5 {[%clk 0:00:58]} 23. Re1 {[%clk 0:01:01]}  Rdf8 {[%clk 0:00:55]} 24. f3 {[%clk 0:00:57]}  Bxf3 {[%clk 0:00:52]} 25. gxf3 {[%clk 0:00:40]}  Rg5+ {[%clk 0:00:52]} 0-1


[Site "https://www.chess.com"]

[Event "Titled Tuesday Blitz June 20 Early 2023"]
[White "Nithyalakshmi, Sivanesan"]
[Black "LangesNasenhaar"]
[WhiteFideId "5706955"]
[WhiteElo "1815"]
[BlackElo "2465"]
[Result "1-0"]
[Round "5"]
[TimeControl "180+2"]
[Date "2023.06.20"]
[WhiteClock "0:00:03"]
[BlackClock "0:00:22"]
[Board "157"]

1. e4 {[%clk 0:02:59]}  d6 {[%clk 0:03:00]} 2. Nc3 {[%clk 0:02:56]}  Nf6 {[%clk 0:03:00]} 3. Bc4 {[%clk 0:02:54]}  c6 {[%clk 0:02:59]} 4. d3 {[%clk 0:02:54]}  e5 {[%clk 0:02:57]} 5. f4 {[%clk 0:02:51]}  Be7 {[%clk 0:02:57]} 6. Nf3 {[%clk 0:02:51]}  Nbd7 {[%clk 0:02:57]} 7. O-O {[%clk 0:02:49]}  O-O {[%clk 0:02:57]} 8. Qe1 {[%clk 0:02:48]}  exf4 {[%clk 0:02:47]} 9. Bxf4 {[%clk 0:02:45]}  b5 {[%clk 0:02:46]} 10. Bb3 {[%clk 0:02:43]}  a5 {[%clk 0:02:44]} 11. a3 {[%clk 0:02:37]}  Nc5 {[%clk 0:02:41]} 12. Ba2 {[%clk 0:02:33]}  Bg4 {[%clk 0:02:33]} 13. d4 {[%clk 0:02:19]}  Ne6 {[%clk 0:02:28]} 14. Be3 {[%clk 0:02:13]}  b4 {[%clk 0:02:26]} 15. axb4 {[%clk 0:02:01]}  axb4 {[%clk 0:02:26]} 16. Ne2 {[%clk 0:01:51]}  Nxe4 {[%clk 0:02:21]} 17. Nf4 {[%clk 0:01:41]}  d5 {[%clk 0:02:10]} 18. Ne5 {[%clk 0:01:37]}  Qc8 {[%clk 0:01:53]} 19. Nxg4 {[%clk 0:01:32]}  Nxf4 {[%clk 0:01:46]} 20. Rxf4 {[%clk 0:01:32]}  Bg5 {[%clk 0:01:47]} 21. Rxe4 {[%clk 0:01:32]}  dxe4 {[%clk 0:01:45]} 22. Bxg5 {[%clk 0:01:27]}  Qxg4 {[%clk 0:01:44]} 23. Be3 {[%clk 0:01:15]}  h6 {[%clk 0:01:28]} 24. Qf1 {[%clk 0:01:00]}  Kh7 {[%clk 0:01:22]} 25. Bc4 {[%clk 0:00:57]}  Rxa1 {[%clk 0:01:15]} 26. Qxa1 {[%clk 0:00:56]}  f5 {[%clk 0:01:16]} 27. h3 {[%clk 0:00:40]}  Qg3 {[%clk 0:01:09]} 28. Bf2 {[%clk 0:00:38]}  Qd6 {[%clk 0:01:09]} 29. Qe1 {[%clk 0:00:26]}  Re8 {[%clk 0:01:08]} 30. c3 {[%clk 0:00:11]}  f4 {[%clk 0:01:04]} 31. Kh1 {[%clk 0:00:07]}  e3 {[%clk 0:00:58]} 32. Bg1 {[%clk 0:00:07]}  bxc3 {[%clk 0:00:47]} 33. Qb1+ {[%clk 0:00:06]}  Kh8 {[%clk 0:00:46]} 34. bxc3 {[%clk 0:00:04]}  f3 {[%clk 0:00:39]} 35. gxf3 {[%clk 0:00:03]}  Qg3 {[%clk 0:00:40]} 36. Qf5 {[%clk 0:00:03]}  e2 {[%clk 0:00:17]} 37. Bd3 {[%clk 0:00:02]}  g6 {[%clk 0:00:18]} 38. Qf6+ {[%clk 0:00:02]}  Kg8 {[%clk 0:00:19]} 39. Bc4+ {[%clk 0:00:02]}  Kh7 {[%clk 0:00:18]} 40. Qf7+ {[%clk 0:00:02]}  Kh8 {[%clk 0:00:19]} 41. Qxe8+ {[%clk 0:00:02]}  Kh7 {[%clk 0:00:20]} 42. Qf7+ {[%clk 0:00:02]}  Kh8 {[%clk 0:00:20]} 43. Qf8+ {[%clk 0:00:02]}  Kh7 {[%clk 0:00:21]} 44. Bg8+ {[%clk 0:00:02]}  Kh8 {[%clk 0:00:22]} 45. Bf7+ {[%clk 0:00:03]}  Kh7 {[%clk 0:00:22]} 46. Qg8# {[%clk 0:00:03]} 1-0


[Site "https://www.chess.com"]

[Event "Titled Tuesday Blitz June 20 Early 2023"]
[White "Gritsenko, Nikolai"]
[Black "Cardozo Munar, Carlos Eduardo"]
[WhiteFideId "14112493"]
[BlackFideId "4409477"]
[WhiteElo "2389"]
[BlackElo "2067"]
[Result "1-0"]
[Round "5"]
[TimeControl "180+2"]
[Date "2023.06.20"]
[WhiteClock "0:00:28"]
[BlackClock "0:00:15"]
[Board "162"]

1. d4 {[%clk 0:02:59]}  d5 {[%clk 0:01:49]} 2. Bg5 {[%clk 0:02:57]}  Nd7 {[%clk 0:01:42]} 3. e3 {[%clk 0:02:54]}  Ngf6 {[%clk 0:01:42]} 4. Nd2 {[%clk 0:02:53]}  e6 {[%clk 0:01:28]} 5. c3 {[%clk 0:02:50]}  Be7 {[%clk 0:01:28]} 6. f4 {[%clk 0:02:50]}  c5 {[%clk 0:01:27]} 7. Bd3 {[%clk 0:02:49]}  a6 {[%clk 0:01:19]} 8. Ngf3 {[%clk 0:02:47]}  b5 {[%clk 0:01:19]} 9. a3 {[%clk 0:02:37]}  Bb7 {[%clk 0:01:19]} 10. O-O {[%clk 0:02:31]}  Ne4 {[%clk 0:01:19]} 11. Bxe7 {[%clk 0:02:30]}  Qxe7 {[%clk 0:01:19]} 12. Ne5 {[%clk 0:02:20]}  f5 {[%clk 0:01:10]} 13. Bxe4 {[%clk 0:01:55]}  fxe4 {[%clk 0:00:49]} 14. Nxd7 {[%clk 0:01:45]}  Qxd7 {[%clk 0:00:49]} 15. dxc5 {[%clk 0:01:43]}  O-O {[%clk 0:00:48]} 16. b4 {[%clk 0:01:43]}  Rf6 {[%clk 0:00:47]} 17. Nb3 {[%clk 0:01:42]}  Raf8 {[%clk 0:00:46]} 18. Qe2 {[%clk 0:01:16]}  Qe7 {[%clk 0:00:43]} 19. Nd4 {[%clk 0:01:14]}  Bc8 {[%clk 0:00:39]} 20. Rae1 {[%clk 0:00:45]}  e5 {[%clk 0:00:39]} 21. fxe5 {[%clk 0:00:44]}  Qxe5 {[%clk 0:00:40]} 22. Rxf6 {[%clk 0:00:42]}  Rxf6 {[%clk 0:00:41]} 23. Rf1 {[%clk 0:00:39]}  Rh6 {[%clk 0:00:41]} 24. g3 {[%clk 0:00:39]}  Bh3 {[%clk 0:00:37]} 25. Rf4 {[%clk 0:00:38]}  Rf6 {[%clk 0:00:28]} 26. Qf2 {[%clk 0:00:36]}  Kf7 {[%clk 0:00:21]} 27. Rxf6+ {[%clk 0:00:35]}  gxf6 {[%clk 0:00:21]} 28. Qe2 {[%clk 0:00:32]}  f5 {[%clk 0:00:21]} 29. Qh5+ {[%clk 0:00:31]}  Ke7 {[%clk 0:00:20]} 30. Qxh7+ {[%clk 0:00:29]}  Kf6 {[%clk 0:00:20]} 31. Qh8+ {[%clk 0:00:28]}  Kg5 {[%clk 0:00:15]} 32. Qxe5 {[%clk 0:00:28]} 1-0


[Site "https://www.chess.com"]

[Event "Titled Tuesday Blitz June 20 Early 2023"]
[White "Korchmar, Vasiliy"]
[Black "Shapiro, Daniel"]
[WhiteFideId "24131750"]
[BlackFideId "2001780"]
[WhiteElo "2370"]
[BlackElo "2330"]
[Result "1/2-1/2"]
[Round "5"]
[TimeControl "180+2"]
[Date "2023.06.20"]
[WhiteClock "0:01:52"]
[BlackClock "0:00:31"]
[Board "163"]

1. e4 {[%clk 0:03:00]}  e5 {[%clk 0:02:58]} 2. Nf3 {[%clk 0:03:00]}  Nc6 {[%clk 0:02:58]} 3. Nc3 {[%clk 0:03:00]}  Nf6 {[%clk 0:02:57]} 4. Bb5 {[%clk 0:03:01]}  Bb4 {[%clk 0:02:55]} 5. O-O {[%clk 0:03:00]}  d6 {[%clk 0:02:48]} 6. d3 {[%clk 0:03:00]}  O-O {[%clk 0:02:33]} 7. Bg5 {[%clk 0:03:00]}  Bxc3 {[%clk 0:02:32]} 8. bxc3 {[%clk 0:02:59]}  Qe7 {[%clk 0:02:33]} 9. Re1 {[%clk 0:02:59]}  Nd8 {[%clk 0:02:31]} 10. d4 {[%clk 0:02:59]}  Ne6 {[%clk 0:02:26]} 11. Bc1 {[%clk 0:02:59]}  c6 {[%clk 0:02:24]} 12. Bf1 {[%clk 0:02:59]}  Nc7 {[%clk 0:01:50]} 13. g3 {[%clk 0:02:48]}  Re8 {[%clk 0:01:44]} 14. Bg2 {[%clk 0:02:46]}  Bg4 {[%clk 0:01:30]} 15. h3 {[%clk 0:02:45]}  Bh5 {[%clk 0:01:28]} 16. g4 {[%clk 0:02:45]}  Bg6 {[%clk 0:01:29]} 17. Nh4 {[%clk 0:02:41]}  Rad8 {[%clk 0:01:12]} 18. f4 {[%clk 0:02:41]}  exf4 {[%clk 0:01:09]} 19. Nxg6 {[%clk 0:02:39]}  hxg6 {[%clk 0:01:04]} 20. Bxf4 {[%clk 0:02:40]}  Nh7 {[%clk 0:00:56]} 21. Qd2 {[%clk 0:02:39]}  g5 {[%clk 0:00:55]} 22. Bg3 {[%clk 0:02:39]}  f6 {[%clk 0:00:54]} 23. Re3 {[%clk 0:02:32]}  Nf8 {[%clk 0:00:54]} 24. Rf1 {[%clk 0:02:30]}  Ng6 {[%clk 0:00:53]} 25. Qe2 {[%clk 0:02:27]}  Ne6 {[%clk 0:00:53]} 26. e5 {[%clk 0:02:24]}  Nef4 {[%clk 0:00:52]} 27. Qc4+ {[%clk 0:02:16]}  Kh8 {[%clk 0:00:43]} 28. Rfe1 {[%clk 0:02:09]}  dxe5 {[%clk 0:00:43]} 29. dxe5 {[%clk 0:02:09]}  Nxe5 {[%clk 0:00:44]} 30. Bxf4 {[%clk 0:02:09]}  Nxc4 {[%clk 0:00:34]} 31. Rxe7 {[%clk 0:02:08]}  Rxe7 {[%clk 0:00:34]} 32. Rxe7 {[%clk 0:02:08]}  gxf4 {[%clk 0:00:35]} 33. Rxb7 {[%clk 0:02:09]}  Rd1+ {[%clk 0:00:33]} 34. Kf2 {[%clk 0:01:57]}  Rd2+ {[%clk 0:00:33]} 35. Kg1 {[%clk 0:01:58]}  Rd1+ {[%clk 0:00:31]} 36. Kh2 {[%clk 0:01:55]}  Rd2 {[%clk 0:00:31]} 37. Kg1 {[%clk 0:01:52]}  Rd1+ {[%clk 0:00:31]} 1/2-1/2


[Site "https://www.chess.com"]

[Event "Titled Tuesday Blitz June 20 Early 2023"]
[White "Mendez Fortes, Eduardo Jesus"]
[Black "Afanasieva, Alexandra"]
[WhiteFideId "3502376"]
[BlackFideId "34126926"]
[WhiteElo "2307"]
[BlackElo "1736"]
[Result "1-0"]
[Round "5"]
[TimeControl "180+2"]
[Date "2023.06.20"]
[WhiteClock "0:00:43"]
[BlackClock "0:00:00"]
[Board "164"]

1. e4 {[%clk 0:03:00]}  c5 {[%clk 0:02:59]} 2. Nf3 {[%clk 0:03:00]}  e6 {[%clk 0:03:00]} 3. d4 {[%clk 0:03:00]}  cxd4 {[%clk 0:02:59]} 4. Nxd4 {[%clk 0:03:01]}  Nf6 {[%clk 0:02:59]} 5. Nc3 {[%clk 0:03:01]}  Nc6 {[%clk 0:03:00]} 6. Ndb5 {[%clk 0:03:01]}  d6 {[%clk 0:02:58]} 7. Bf4 {[%clk 0:03:01]}  e5 {[%clk 0:02:59]} 8. Bg5 {[%clk 0:03:01]}  a6 {[%clk 0:02:59]} 9. Na3 {[%clk 0:03:01]}  b5 {[%clk 0:03:00]} 10. Nd5 {[%clk 0:03:01]}  Be7 {[%clk 0:03:00]} 11. Bxf6 {[%clk 0:03:02]}  gxf6 {[%clk 0:02:42]} 12. c4 {[%clk 0:02:58]}  b4 {[%clk 0:02:35]} 13. Nc2 {[%clk 0:02:58]}  Be6 {[%clk 0:02:35]} 14. Be2 {[%clk 0:02:55]}  Rg8 {[%clk 0:02:21]} 15. O-O {[%clk 0:02:51]}  Rb8 {[%clk 0:02:18]} 16. Nce3 {[%clk 0:02:51]}  Qd7 {[%clk 0:02:16]} 17. h3 {[%clk 0:02:44]}  Bxh3 {[%clk 0:02:02]} 18. Bh5 {[%clk 0:02:29]}  Nd4 {[%clk 0:01:48]} 19. g3 {[%clk 0:02:14]}  Bxf1 {[%clk 0:01:43]} 20. Qxf1 {[%clk 0:02:14]}  f5 {[%clk 0:01:30]} 21. exf5 {[%clk 0:02:07]}  Nxf5 {[%clk 0:01:23]} 22. Nxf5 {[%clk 0:02:07]}  Qxf5 {[%clk 0:01:22]} 23. Qe2 {[%clk 0:02:08]}  Bh4 {[%clk 0:01:09]} 24. Bf3 {[%clk 0:01:58]}  Kd7 {[%clk 0:00:44]} 25. Rd1 {[%clk 0:01:54]}  Bxg3 {[%clk 0:00:37]} 26. fxg3 {[%clk 0:01:54]}  Rxg3+ {[%clk 0:00:38]} 27. Bg2 {[%clk 0:01:53]}  Rbg8 {[%clk 0:00:35]} 28. Ne3 {[%clk 0:01:40]}  Qg5 {[%clk 0:00:35]} 29. Rd3 {[%clk 0:01:17]}  e4 {[%clk 0:00:24]} 30. Rb3 {[%clk 0:01:15]}  a5 {[%clk 0:00:23]} 31. c5 {[%clk 0:01:12]}  a4 {[%clk 0:00:16]} 32. Qb5+ {[%clk 0:01:01]}  Ke6 {[%clk 0:00:10]} 33. Qc4+ {[%clk 0:00:58]}  Kf6 {[%clk 0:00:08]} 34. Qd4+ {[%clk 0:00:56]}  Kg6 {[%clk 0:00:04]} 35. Qxe4+ {[%clk 0:00:56]}  Kh6 {[%clk 0:00:00]} 36. Nf5+ {[%clk 0:00:43]} 1-0


[Site "https://www.chess.com"]